Cogmind - Beta 13 @@@ ROGUE MODE // 2024.04.29 @ 01:21:25 Player: Meraxes Result: Destroyed by S-27 Virus with Autogun Performance ------------- Evolutions (3) 1500 Regions Visited (5) 1000 Robots Destroyed (21) 105 Value Destroyed (676) 676 Prototype IDs (0) 0 Alien Tech Used (0) 0 Bonus (200) 200 TOTAL SCORE: 3481 Bonus ------- Pacifist 200 Cogmind --------- Core Integrity 0/700 Matter 245/300 Energy 66/300 System Corruption 0% Temperature Cool (0) Movement Core (100) Ox1 Location -7/Factory Parts ------- > --- POWER (2) -------- (None) > --- PROPULSION (3) --- (None) > --- UTILITY (5) ------ Compact Battery Visual Processing Unit Seismic Detector > --- WEAPON (3) ------- Katana > --- INVENTORY (5) ---- (None) Peak State ------------ > --- POWER ------------ Light Ion Engine Deuterium Engine > --- PROPULSION ------- Titanium Leg Titanium Leg Titanium Leg > --- UTILITY ---------- Cooling System Visual Processing Unit Medium Armor Plating Reactive Plating > --- WEAPON ----------- Beam Rifle Gauss Rifle > --- INVENTORY -------- Aluminum Leg Aluminum Leg Carbon-fiber Leg Plasma Cutter [Rating: 28] Favorites ----------- Power Deuterium Engine Engine Deuterium Engine Propulsion Titanium Leg Leg Titanium Leg Utility Visual Processing Unit Device Cooling System Storage Small Storage Unit Processor Visual Processing Unit Protection Reactive Plating Weapon Beam Rifle Energy Gun Beam Rifle Ballistic Gun Light Assault Rifle Special Weapon Plasma Cutter Slashing Weapon Scythe Build | -11 -10 -10 -9 -8 -7 ------- Run | Yrd Mat Min Mat Mat Fac Slots Evolved 6 | . . . 2 2 2 Power 1 | . . . . 1 . Propulsion 1 | . . . 1 . . Utility 3 | . . . 1 1 1 Weapon 1 | . . . . . 1 Parts Attached 42 | 6 . 2 8 15 11 Power 7 | 1 . 1 . 4 1 Engine 7 | 1 . 1 . 4 1 Core . | . . . . . . Reactor . | . . . . . . Propulsion 12 | 2 . . 5 1 4 Treads . | . . . . . . Leg 12 | 2 . . 5 1 4 Wheel . | . . . . . . Hover . | . . . . . . Flight . | . . . . . . Utility 12 | 1 . 1 1 6 3 Device 5 | . . 1 . 2 2 Storage 4 | 1 . . . 2 1 Processor 1 | . . . 1 . . Hackware . | . . . . . . Protection 2 | . . . . 2 . Artifact . | . . . . . . Weapon 11 | 2 . . 2 4 3 Energy Gun 4 | 1 . . 2 1 . Energy Cannon . | . . . . . . Ballistic Gun 2 | 1 . . . 1 . Ballistic Cannon . | . . . . . . Launcher . | . . . . . . Special Weapon 3 | . . . . 2 1 Impact Weapon . | . . . . . . Slashing Weapon 2 | . . . . . 2 Piercing Weapon . | . . . . . . Special Melee Weapon . | . . . . . . Unidentified Prototypes . | . . . . . . Parts Lost 28 | . 1 . 1 8 18 Power 6 | . . . . 3 3 Propulsion 8 | . . . . 1 7 Utility 6 | . . . . 2 4 Weapon 8 | . 1 . 1 2 4 Highest Loss Streak 11 | . 1 . 1 3 11 To Critical Strikes . | . . . . . . Average Slot Usage (%) 82 | . 85 77 90 89 57 Engine 12 | . 14 14 11 14 6 Leg 25 | . 28 28 25 27 17 Device 7 | . . 6 11 8 5 Storage 7 | . 14 14 11 3 6 Processor 7 | . . . 10 9 7 Protection 4 | . . . . 9 3 Energy Gun 9 | . 14 . 11 12 6 Ballistic Gun 5 | . 14 14 10 2 . Special Weapon 1 | . . . . 2 . Naked Turns . | . . . . . . Heaviest Build 104 | 13 13 20 24 104 42 Greatest Support 51 | 20 20 20 51 51 49 Greatest Overweight (x) 4 | . . . 1 2 4 Average Overweight (x) . | . . . . . . Largest Inventory Capacity 25 | 8 8 8 8 25 10 Average Capacity 8 | 7 8 8 8 8 9 Most Carried 8 | 2 2 3 8 7 6 Average Carried 3 | 1 2 2 3 4 3 Final Capacity 10 | 8 8 8 8 10 5 Final Carried 6 | 2 2 3 6 5 . Class Distribution -------------------- 100% | Mutant Dominant Class ---------------- Mutant | -10/Materials Mutant | -10/Mines Mutant | -9/Materials Mutant | -8/Materials Mutant | -7/Factory Resources | -11 -10 -10 -9 -8 -7 ----------- Run | Yrd Mat Min Mat Mat Fac Matter Collected 577 | 146 . 50 104 277 . Remotely . | . . . . . . Salvage Created 888 | . . . 104 784 . Parts 38 | . . . 6 32 . Haulers Intercepted . | . . . . . . Recyclers Shooed . | . . . . . . Parts Field Recycled . | . . . . . . Retrieved Matter . | . . . . . . Parts Self-Destructed . | . . . . . . Prevented . | . . . . . . Kills | -11 -10 -10 -9 -8 -7 ------- Run | Yrd Mat Min Mat Mat Fac Combat Hostiles Destroyed 15 | . . . 2 13 . Guns 14 | . . . 2 12 . Cannons 1 | . . . . 1 . Classes Destroyed 11 | . . . 2 9 . Worker 2 | . . . . 2 . Builder 1 | . . . . 1 . Tunneler 1 | . . . . 1 . Recycler 1 | . . . . 1 . Watcher 1 | . . . . 1 . Swarmer 2 | . . . . 2 . Grunt 8 | . . . 1 7 . Brawler 1 | . . . . 1 . Duelist 1 | . . . . 1 . Sentry 2 | . . . 1 1 . Hunter 1 | . . . . 1 . Best Kill Streak 7 | . . . 1 7 . Combat Bots Only 3 | . . . 1 3 . Max Kills in Single Turn 2 | . . . 1 2 . Gunslinging . | . . . . . . Exploded . | . . . . . . Melee . | . . . . . . Uniques/NPCs Destroyed . | . . . . . . Combat | -11 -10 -10 -9 -8 -7 -------- Run | Yrd Mat Min Mat Mat Fac Hostile Shots Fired 521 | . 56 . 77 127 261 Missed 189 | . 18 . 25 34 112 Damage Taken 3651 | . 313 . 286 1085 1967 Core 945 | . 65 . 59 110 711 Absorbed by Shields 360 | . . . 188 172 . Ignored by Resistances 66 | . . . . . 66 Core Remaining (%) 84 | 100 . 74 85 80 . Volleys Fired 78 | . 2 . 10 60 6 Largest 2 | . 2 . 2 2 2 Hottest 111 | . 60 . 70 111 111 Shots Fired 140 | . 4 . 20 105 11 Gun 135 | . 4 . 20 101 10 Cannon . | . . . . . . Launcher . | . . . . . . Special 5 | . . . . 4 1 Kinetic 44 | . 2 . 10 32 . Thermal 79 | . . . 10 63 6 Explosive . | . . . . . . Electromagnetic 17 | . 2 . . 10 5 Robot Hit Streak 11 | . 2 . 5 7 11 Robot Miss Streak 4 | . 2 . 3 4 1 Penetration Max 1 | . . . . 1 . Secondary Targets 2 | . . . . 2 . Max Gunslinging Chain 1 | . . . . 1 . Shots Hit Robots 93 | . 2 . 14 67 10 Core Hits 40 | . . . 5 33 2 Critical Kills 1 | . . . . 1 . Critical Parts Destroyed 1 | . . . . 1 . Critical Strikes 9 | . . . . 9 . Burn 7 | . . . . 7 . Destroy 2 | . . . . 2 . Melee Attacks 1 | . . . . . 1 Impact . | . . . . . . Slashing 1 | . . . . . 1 Piercing . | . . . . . . Sneak Attacks . | . . . . . . Combat Hostiles . | . . . . . . Follow-up Attacks . | . . . . . . Damage Inflicted 1865 | . 28 . 151 1493 193 Guns 1464 | . 28 . 151 1143 142 Cannons . | . . . . . . Explosions 353 | . . . . 313 40 Melee . | . . . . . . Ramming 4 | . . . . 4 . Kinetic 517 | . 17 . 50 450 . Thermal 1119 | . . . 101 894 124 Explosive . | . . . . . . Electromagnetic 225 | . 11 . . 145 69 Impact . | . . . . . . Slashing . | . . . . . . Piercing . | . . . . . . Highest Corruption . | . . . . . . Average Corruption . | . . . . . . Corruption Purged . | . . . . . . Corruption Blocked . | . . . . . . Overload Shots . | . . . . . . Overflow Damage 21 | . . . . 21 . Projectiles . | . . . . . . Explosions 21 | . . . . 21 . Melee . | . . . . . . Knockbacks 1 | . . . . 1 . Impact 1 | . . . . 1 . Kinetic . | . . . . . . Secondary . | . . . . . . Self-Inflicted Damage 68 | . . . . 68 . Shots 1 | . . . . 1 . Rammed . | . . . . . . Targets Rammed 1 | . . . . 1 . Kicked 1 | . . . . 1 . Crushed . | . . . . . . Highest Temperature 360 | . 20 . 36 360 60 Average Temperature 98 | . 12 . 18 120 33 Received Heat Transfer 1034 | . 9 . 60 509 456 Effects 1 | . . . . 1 . Shutdowns 1 | . . . . 1 . Siege Activations . | . . . . . . Robots Corrupted . | . . . . . . Combat Hostiles . | . . . . . . Parts Fried . | . . . . . . Impact Corruptions . | . . . . . . Robots Melted . | . . . . . . Combat Hostiles . | . . . . . . Parts Melted 6 | . . . . 6 . Heat Transferred 2840 | . . . 296 2272 272 Parts Sabotaged . | . . . . . . Parts Stolen . | . . . . . . Parts Stripped . | . . . . . . Power Chain Reactions 2 | . . . . 1 1 Alert | -11 -10 -10 -9 -8 -7 ------- Run | Yrd Mat Min Mat Mat Fac Peak Influence 275 | . 15 11 85 275 184 Initial 124 | . . 11 3 31 124 Average 75 | . 6 11 50 101 111 Maximum Alert Level 1 | . . . . 1 . Low Security (%) 95 | 100 100 100 100 89 100 Level 1 4 | . . . . 10 . Level 2 . | . . . . . . Level 3 . | . . . . . . Level 4 . | . . . . . . Level 5 . | . . . . . . High Security . | . . . . . . Max Security . | . . . . . . Squads Dispatched 6 | . . 1 1 1 3 Investigation 4 | . . 1 1 . 2 Extermination . | . . . . . . Reinforcement 2 | . . . . 1 1 Assault . | . . . . . . Garrison . | . . . . . . Intercept . | . . . . . . Searches Triggered . | . . . . . . Construction Impeded . | . . . . . . Haulers Reinforced . | . . . . . . Active Scanning Responses . | . . . . . . Cargo Convoy Interrupts . | . . . . . . Stealth | -11 -10 -10 -9 -8 -7 --------- Run | Yrd Mat Min Mat Mat Fac Distress Signals 5 | . 1 . 1 1 2 Communications Jammed . | . . . . . . Distress Signals . | . . . . . . Times Spotted 54 | . 9 . 10 21 14 Peak Tracking Total 11 | . 8 . 5 4 11 Tactical Retreats 6 | . 1 . 1 . 4 Traps | -11 -10 -10 -9 -8 -7 ------- Run | Yrd Mat Min Mat Mat Fac Traps Triggered . | . . . . . . Indirectly . | . . . . . . Trap Hack Attempts . | . . . . . . Triggered . | . . . . . . Disarmed . | . . . . . . Reprogrammed . | . . . . . . Reused . | . . . . . . Traps Extracted . | . . . . . . Installed . | . . . . . . Triggered . | . . . . . . Machines | -11 -10 -10 -9 -8 -7 ---------- Run | Yrd Mat Min Mat Mat Fac Machines Disabled 2 | . . . . 2 . Max in Single Turn 2 | . . . . 2 . Machines Repaired . | . . . . . . Machines Dismantled . | . . . . . . Machines Sabotaged . | . . . . . . Overloaded Fab Kills . | . . . . . . Hacking | -11 -10 -10 -9 -8 -7 --------- Run | Yrd Mat Min Mat Mat Fac Machines Accessed 12 | . 1 1 1 6 3 Terminals 7 | . 1 . 1 2 3 Fabricators . | . . . . . . Repair Stations 1 | . . . . 1 . Recycling Units 2 | . . . . 2 . Scanalyzers . | . . . . . . Garrison Access 1 | . . . . 1 . Total Hacks 39 | . 4 1 4 18 12 Successful 25 | . 2 1 2 11 9 Failed 13 | . 2 . 2 7 2 Catastrophic . | . . . . . . Database Lockouts 1 | . . . . . 1 Manual 12 | . . . 2 7 3 Terminals 31 | . 4 . 4 11 12 Fabricators . | . . . . . . Repair Stations 1 | . . . . 1 . Recycling Units 5 | . . . . 5 . Scanalyzers . | . . . . . . Garrison Access 1 | . . . . 1 . Terminal Hacks 22 | . 2 1 2 8 9 Record 14 | . . . 2 6 6 Open Door 1 | . . 1 . . . Open DSF 1 | . . . . . 1 Branch Access Points 1 | . 1 . . . . Emergency Access Points 1 | . 1 . . . . Alert Level 1 | . . . . 1 . Hauler Manifests 1 | . . . . 1 . Zone Layout 2 | . . . . . 2 Fabricator Hacks . | . . . . . . Repair Station Hacks . | . . . . . . Recycling Unit Hacks 3 | . . . . 3 . Report Inventory 2 | . . . . 2 . Retrieve Matter 1 | . . . . 1 . Scanalyzer . | . . . . . . Garrison Access Hacks . | . . . . . . Unauthorized Hacks . | . . . . . . Terminals . | . . . . . . Fabricators . | . . . . . . Repair Stations . | . . . . . . Recycling Units . | . . . . . . Scanalyzers . | . . . . . . Garrison Access . | . . . . . . Data Cores Recovered . | . . . . . . Used . | . . . . . . Hacking Detections 8 | . 1 . 1 4 2 Full Trace Events 3 | . . . 1 . 2 Feedback Events . | . . . . . . Feedback Blocked . | . . . . . . Robot Schematics Acquired . | . . . . . . Robots Built . | . . . . . . Authchips . | . . . . . . Time . | . . . . . . Total Robot Build Rating . | . . . . . . Part Schematics Acquired . | . . . . . . Parts Built . | . . . . . . Authchips . | . . . . . . Time . | . . . . . . Total Part Build Rating . | . . . . . . Parts Repaired . | . . . . . . Time . | . . . . . . Parts Recycled . | . . . . . . Recycled Matter . | . . . . . . Retrieved Matter . | . . . . . . Retrieved Components . | . . . . . . Parts Scanalyzed . | . . . . . . Part Schematics Acquired . | . . . . . . Parts Damaged . | . . . . . . Bothacking | -11 -10 -10 -9 -8 -7 ------------ Run | Yrd Mat Min Mat Mat Fac Used RIF Installer . | . . . . . . Robots Hacked . | . . . . . . Non-combat . | . . . . . . Combat . | . . . . . . Robot Hacks Applied . | . . . . . . Relay Couplers Released . | . . . . . . Fabnet Peak Effective % . | . . . . . . Robots Rewired . | . . . . . . Allies Hacked . | . . . . . . Hacks Repelled . | . . . . . . Allies | -11 -10 -10 -9 -8 -7 -------- Run | Yrd Mat Min Mat Mat Fac Total Allies . | . . . . . . Largest Group . | . . . . . . Highest-Rated Group . | . . . . . . Highest-Rated Ally . | . . . . . . Total Orders . | . . . . . . Ally Attacks . | . . . . . . Total Damage . | . . . . . . Kills . | . . . . . . Allies Corrupted . | . . . . . . Allies Melted . | . . . . . . Intel | -11 -10 -10 -9 -8 -7 ------- Run | Yrd Mat Min Mat Mat Fac Robot Analysis Total . | . . . . . . Derelict Logs Recovered 1 | . . 1 . . . Drone Launches . | . . . . . . Drone Recoveries . | . . . . . . Exploration | -11 -10 -10 -9 -8 -7 ------------- Run | Yrd Mat Min Mat Mat Fac Turns Passed 1705 | 52 116 180 285 772 300 Spaces Moved 1014 | 38 93 148 148 385 202 Core 81 | 8 . . . . 73 Treads . | . . . . . . Legs 933 | 30 93 148 148 385 129 Wheels . | . . . . . . Hover . | . . . . . . Flight . | . . . . . . Fastest Speed 50 | 50 120 120 120 126 50 Average Speed 131 | 105 120 120 162 140 108 Slowest Speed 270 | 120 120 120 190 270 250 Overloaded Moves . | . . . . . . Propulsion Burnouts . | . . . . . . Robots Hopped . | . . . . . . Cave-ins Triggered . | . . . . . . Exploration Rate (%) 20 | 3 27 29 18 41 7 Regions Visited 5 Branch Regions 1 Pre-discovered Areas . | . . . . . . Known Exits Taken 2 | . 1 . 1 . . Unknown Exits Taken 3 | 1 . 1 . 1 . Scrap Searched . | . . . . . . Spaces Dug . | . . . . . . Terrain Destroyed 9 | . . . . 9 . Melee . | . . . . . . Projectile . | . . . . . . AOE 9 | . . . . 9 . Terrain Rammed . | . . . . . . Walls Destroyed . | . . . . . . Machines Disabled . | . . . . . . Actions | -11 -10 -10 -9 -8 -7 --------- Run | Yrd Mat Min Mat Mat Fac Total 1234 | 47 94 149 172 502 270 Wait 76 | 2 . . 2 24 48 Move 1009 | 37 92 147 147 384 202 Hop . | . . . . . . Pick Up 15 | 2 . . 3 8 2 Fast Attach 21 | 6 . 1 3 7 4 Attach 18 | . . . 3 8 7 Detach 5 | . . . 1 4 . Swap 3 | . . 1 2 . . Drop 5 | . . . 1 4 . Fire 78 | . 2 . 10 60 6 Melee 1 | . . . . . 1 Ram . | . . . . . . Kick 1 | . . . . 1 . Crush . | . . . . . . Escape Stasis . | . . . . . . Rewire . | . . . . . . Trap . | . . . . . . Miscellaneous 2 | . . . . 2 . Route ------- -11/Scrapyard -10/Materials (discovered 2 exits: *Mat / *Min) -10/Mines -9/Materials -8/Materials -7/Factory History --------- Turn | Location | Event 6 | -11/Scrapyard | Discovered new exit (range 14) 53 | -11/Scrapyard | Entered Materials 62 | -10/Materials | Identified exit to Mines 121 | -10/Materials | Discovered new exit (range 5) 169 | -10/Materials | Entered Mines 223 | -10/Mines | Learned 4 Materials zone layouts 234 | -10/Mines | Met a Derelict shopkeep closing up shop 302 | -10/Mines | Build established: Mutant 339 | -10/Mines | Discovered new exit (range 5) 349 | -10/Mines | Entered Materials 349 | -9/Materials | Evolved 2 slots: Propulsion x1, Utility x1 350 | -9/Materials | Identified exit to Materials 634 | -9/Materials | Entered another Materials area 634 | -8/Materials | Evolved 2 slots: Power x1, Utility x1 873 | -8/Materials | Lost 3 parts (1p1u1w) 1349 | -8/Materials | Discovered new exit (range 11) 1406 | -8/Materials | Entered Factory 1406 | -7/Factory | Evolved 2 slots: Utility x1, Weapon x1 1588 | -7/Factory | Central database locked down 1605 | -7/Factory | Lost 11 parts (3p3n2u3w) 1646 | -7/Factory | Core integrity fell below 50% 1668 | -7/Factory | Core integrity fell below 20% 1701 | -7/Factory | Lost 7 parts (4n2u1w) 1706 | -7/Factory | Destroyed by S-27 Virus with Autogun Last Messages --------------- 01636_ K-01 Serf destroyed. 01637_ K-01 Serf collects debris. 01640_ Imp. Titanium Leg destroyed. 01640_ Imp. Aluminum Leg destroyed. 01640_ W-25 Informer sends out distress signal. 01642_ Slug penetrates Wall. 01644_ Imp. Terrain Scanner destroyed. 01645_ Slug penetrates Wall. 01648_ Aluminum Leg destroyed. 01648_ Slug penetrates Wall. 01651_ Y-54 Guardian IFF system glitched. 01655_ ALERT: Hostiles spotted, dispatching reinforcements to Terminal F020. 01661_ K-01 Serf collects debris. 01664_ Scythe destroyed. 01670_ Med. Storage Unit destroyed. 01691_ Connecting with DSF Access... 01696_ Acquired Seismic Detector. 01699_ Acquired Com. Battery. 01702_ Acquired Katana. Map ----- +----------------------------------------------------+ | ???????????????????????????????????????? | | ???????????????????????????????????????? | | ???????????????????????????????????????? | | ???????????????????????????????????????? | | ???????????????????????????????????????? | | ???????????????????????????????????????? | | ???????????????????????????????????????? | | ???????????????????????????????????????? | | ???????????????????????????????????????? | | ???????????????????????????????????????? | | ???????????????????????????????????????? | | ???????????????????????????????????????? | | ???????????????????????????????????????? | | ???????????????????????????????????????? | | ???????????????????????????????????????? | | ???????????????????????????????????????? | | ???????????????????????????????????????? | | ???????????????????????????????????????? | | ???????????????????????????????????????? | | ?????##############????????????????????? | | ????## ?????????????????????? | | ????# ######????????????????????? | | ????#T # #????????????????????? | | ????## + #????????????????????? | | ?????# #######s #????????????????????? | | ?????# #?????# @ #????????????????????? | | ?????# #?????# #????????????????????? | | ?????# #?????#/ #????????????????????? | | ?????# #?????#// #????????????????????? | | ?????# #?????# #????????????????????? | | # T??# #?????######????????????????????? | | # "" # #############???????????????????? | | # + #???????????????????? | | # = # ###???????????????????????? | | # ??# #???????????? ?????? | | ?????# #???????????# ?????? | | ?????# #???????????# ????? | | ?????# #???????????# ????? | | ?????# +???????????# ?????? | | ?????#+### #???????????# #?????? | | ?????????# ##???????????# #?????? | | ?????????# ###########??# #?????? | | ?????????# # #??# * #?????? | | ?????????# # #??# [ #?????? | | ?????????# # #??# #?????? | | ?????????# # #??# #?????? | | ?????????# # #??# #?????? | | ?????????# # #??# ####### | | ?????????# # ???# # | | ?????????# #?? ?????# # | +----------------------------------------------------+ Best States ------------- Heat Dissipation 56 Energy Generation 19 Energy Capacity 425 Matter Stores 300 Matter Capacity 300 Sight Range 18 Terrain Scan Range 16 Terrain Scan Density 10 Armor Coverage 375 Resistance: KI 20 Evasion (%) 55 Item Schematics ----------------- None Robot Schematics ------------------ None Fabricated ------------ Nothing Alien Tech Used ----------------- None Achievements -------------- Please Form A Line Challenges ------------ None Game ------ Seed WardroneRainbowThruster Manual? 0 Play Time 01:17:07 Cumulative 9.8 hours Start 2024.04.28 @ 23:53:29 End 2024.04.29 @ 01:21:25 Sessions 1 Manual Loads 0 Difficulty Rogue Special Mode None Game No. 13 Rogue 13 Adventurer 0 Explorer 0 Win Type - Total 0 Types 0/0/0/0/0/0/0/0/0 Lore% 6 Gallery% 9 Achievement% 8 Wizard Run 0 Options --------- Layout 1 ASCII 1 Keyboard 1 Movement Vi Keybinds 0 Fullscreen 1 Font 32/SmallcapsGlow Map View 55x47 Zoom Use 0% Tactical HUD 1 Map Filters NONE Filters NONE Steam 1 RUN: 82410c84-2abb-4534-a824-0ca72ae13b85